Cogmind - Beta 14 @@@ ROGUE MODE // 2024.10.03 @ 19:13:17 Player: so_sleepy.mp4 Result: Destroyed by Y-54 Guardian with Gatling Laser Performance ------------- Evolutions (0) 0 Regions Visited (4) 800 Robots Destroyed (29) 145 Value Destroyed (449) 449 Prototype IDs (0) 0 Alien Tech Used (0) 0 Bonus (0) 0 TOTAL SCORE: 1394 Bonus ------- None Cogmind --------- Core Integrity 0/250 Matter 276/300 Energy 126/140 System Corruption 0% Temperature Cool (18) Movement Rolling (120) Ox1 Location -7/Recycling Parts ------- > --- POWER (1) -------- Light Deuterium Engine > --- PROPULSION (2) --- Subdweller Monowheel > --- UTILITY (2) ------ Small Storage Unit ECM Suite > --- WEAPON (2) ------- Heavy Ion Cannon Gauss Rifle > --- INVENTORY (8) ---- Improved Heat Sink Improved Heat Sink Huge Storage Unit Terrain Scanner Arc Projector Gatling Laser Datajack Peak State ------------ > --- POWER ------------ Light Deuterium Engine > --- PROPULSION ------- Wheel Subdweller Monowheel > --- UTILITY ---------- Small Storage Unit Seismic Detector > --- WEAPON ----------- Greatsword > --- INVENTORY -------- Improved Heat Sink Huge Storage Unit Terrain Scanner ECM Suite Heavy Ion Cannon Datajack [Rating: 17] Favorites ----------- Power Light Ion Engine Engine Light Ion Engine Propulsion Aluminum Leg Leg Aluminum Leg Wheel Wheel Utility Small Storage Unit Device Seismic Detector Storage Small Storage Unit Protection Propulsion Shielding Weapon Medium Laser Energy Gun Medium Laser Energy Cannon Heavy Ion Cannon Ballistic Gun Battle Rifle Slashing Weapon Ripper Special Melee Weapon Datajack Build | -11 -10 -10 -10 -7 ------- Run | Yrd Mat Min Sub Rec Slots Evolved . | . . . . . Power . | . . . . . Propulsion . | . . . . . Utility . | . . . . . Weapon . | . . . . . Parts Attached 38 | 5 10 8 5 10 Power 3 | 1 . 1 . 1 Engine 3 | 1 . 1 . 1 Core . | . . . . . Reactor . | . . . . . Propulsion 11 | 2 . 4 3 2 Treads . | . . . . . Leg 6 | 2 . 2 2 . Wheel 5 | . . 2 1 2 Hover . | . . . . . Flight . | . . . . . Utility 13 | 1 7 2 1 2 Device 6 | . 2 1 1 2 Storage 6 | 1 4 1 . . Processor . | . . . . . Hackware . | . . . . . Protection 1 | . 1 . . . Artifact . | . . . . . Weapon 11 | 1 3 1 1 5 Energy Gun 3 | 1 2 . . . Energy Cannon 1 | . . . . 1 Ballistic Gun 3 | . . . 1 2 Ballistic Cannon . | . . . . . Launcher . | . . . . . Special Weapon . | . . . . . Impact Weapon . | . . . . . Slashing Weapon 2 | . . 1 . 1 Piercing Weapon . | . . . . . Special Melee Weapon 2 | . 1 . . 1 Unidentified Prototypes . | . . . . . Parts Lost 7 | . . 4 1 2 Power 2 | . . 1 1 . Propulsion 3 | . . 2 . 1 Utility 1 | . . . . 1 Weapon 1 | . . 1 . . Highest Loss Streak 3 | . . 3 1 2 To Critical Strikes . | . . . . . Average Slot Usage (%) 89 | . 88 90 97 85 Engine 11 | . 14 13 12 7 Leg 17 | . 28 19 12 9 Wheel 9 | . . 8 15 15 Device 13 | . 12 15 14 12 Storage 9 | . 3 5 14 14 Protection 1 | . 3 1 . . Energy Gun 11 | . 22 19 6 . Energy Cannon 1 | . . . . 5 Ballistic Gun 4 | . . . 7 9 Slashing Weapon 6 | . . 5 14 8 Special Melee Weapon 1 | . 3 . . 1 Peak Build Rating 17 | 5 7 10 16 17 Average Rating 10 | 2 6 7 12 14 On Entrance 7 | . 5 7 10 15 Naked Turns . | . . . . . Heaviest Build 24 | 12 13 14 14 24 Greatest Support 30 | 20 20 26 30 30 Greatest Overweight (x) 1 | . . . . 1 Average Overweight (x) . | . . . . . Largest Inventory Capacity 25 | 8 25 8 8 8 Average Capacity 7 | 7 5 6 8 8 Most Carried 8 | 4 5 7 8 8 Average Carried 6 | 1 3 5 7 7 Final Capacity 8 | 8 5 8 8 8 Final Carried 8 | . 5 7 8 7 Class Distribution -------------------- 100% | Mutant Dominant Class ---------------- Mutant | -10/Materials Mutant | -10/Mines Mutant | -10/Subcaves Mutant | -7/Recycling Resources | -11 -10 -10 -10 -7 ----------- Run | Yrd Mat Min Sub Rec Matter Collected 572 | 205 145 75 57 90 Remotely . | . . . . . Salvage Created 1630 | . 204 277 11 1138 Parts 69 | . 12 13 4 40 Haulers Intercepted . | . . . . . Recyclers Shooed . | . . . . . Parts Field Recycled . | . . . . . Retrieved Matter . | . . . . . Parts Self-Destructed 9 | . . . 9 . Prevented . | . . . . . Kills | -11 -10 -10 -10 -7 ------- Run | Yrd Mat Min Sub Rec Combat Hostiles Destroyed 16 | . 8 5 1 2 Melee 1 | . . . . 1 Guns 13 | . 8 4 1 . Cannons 1 | . . . . 1 Classes Destroyed 5 | . 2 2 . 1 Worker 2 | . . 2 . . Recycler 11 | . . 1 . 10 Swarmer 9 | . 5 3 1 . Grunt 5 | . 3 2 . . Sentry 2 | . . . . 2 Best Kill Streak 8 | . 3 3 1 8 Combat Bots Only 3 | . 3 3 1 1 Max Kills in Single Turn 1 | . 1 1 1 1 Gunslinging . | . . . . . Exploded . | . . . . . Melee 1 | . . . . 1 Uniques/NPCs Destroyed . | . . . . . Combat | -11 -10 -10 -10 -7 -------- Run | Yrd Mat Min Sub Rec Hostile Shots Fired 181 | . 49 33 24 75 Missed 64 | . 15 4 12 33 Damage Taken 1028 | . 315 304 100 309 Core 254 | . 75 74 19 86 Absorbed by Shields . | . . . . . Redirected to Shielding 14 | . 14 . . . Core Remaining (%) 100 | 100 . . . . Volleys Fired 61 | . 19 26 4 12 Largest 2 | . 2 2 1 2 Hottest 93 | . 90 90 25 93 Shots Fired 92 | . 38 36 4 14 Gun 82 | . 38 36 4 4 Cannon 10 | . . . . 10 Launcher . | . . . . . Special . | . . . . . Kinetic 8 | . . . 4 4 Thermal 84 | . 38 36 . 10 Explosive . | . . . . . Electromagnetic . | . . . . . Robot Hit Streak 11 | . 7 6 2 11 Robot Miss Streak 3 | . 3 2 2 1 Penetration Max . | . . . . . Secondary Targets 1 | . . 1 . . Max Gunslinging Chain 1 | . . 1 . . Shots Hit Robots 86 | . 26 29 2 29 Core Hits 35 | . 11 9 1 14 Critical Kills . | . . . . . Critical Parts Destroyed . | . . . . . Critical Strikes 4 | . . 3 . 1 Burn 3 | . . 3 . . Sever 1 | . . . . 1 Melee Attacks 21 | . . 3 1 17 Impact . | . . . . . Slashing 20 | . . 3 1 16 Piercing . | . . . . . Sneak Attacks 10 | . . 3 . 7 Combat Hostiles . | . . . . . Follow-up Attacks . | . . . . . Damage Inflicted 2167 | . 304 486 37 1340 Guns 654 | . 304 284 37 29 Cannons 271 | . . . . 271 Explosions . | . . . . . Melee 1242 | . . 202 . 1040 Ramming . | . . . . . Kinetic 66 | . . . 37 29 Thermal 859 | . 304 284 . 271 Explosive . | . . . . . Electromagnetic . | . . . . . Impact . | . . . . . Slashing 1242 | . . 202 . 1040 Piercing . | . . . . . Highest Corruption . | . . . . . Average Corruption . | . . . . . Corruption Purged . | . . . . . Corruption Blocked . | . . . . . Overload Shots . | . . . . . Overflow Damage 273 | . . 20 . 253 Projectiles . | . . . . . Explosions . | . . . . . Melee 273 | . . 20 . 253 Knockbacks . | . . . . . Impact . | . . . . . Kinetic . | . . . . . Secondary . | . . . . . Self-Inflicted Damage . | . . . . . Shots . | . . . . . Rammed . | . . . . . Targets Rammed . | . . . . . Kicked . | . . . . . Crushed . | . . . . . Highest Temperature 300 | . 300 286 . 130 Average Temperature 95 | . 88 114 . 62 Received Heat Transfer 333 | . 78 123 42 90 Effects 4 | . 3 1 . . Energy Bleed 1 | . . 1 . . Interference 3 | . 3 . . . Siege Activations . | . . . . . Robots Corrupted . | . . . . . Combat Hostiles . | . . . . . Parts Fried . | . . . . . Impact Corruptions . | . . . . . Robots Melted 1 | . . 1 . . Combat Hostiles 1 | . . 1 . . Parts Melted 4 | . 1 3 . . Heat Transferred 2189 | . 806 1013 . 370 Parts Sabotaged . | . . . . . Parts Stolen . | . . . . . Parts Stripped . | . . . . . Power Chain Reactions . | . . . . . Alert | -11 -10 -10 -10 -7 ------- Run | Yrd Mat Min Sub Rec Peak Influence 125 | . 125 122 . 85 Initial 40 | . . 27 . 40 Average 48 | . 43 56 . 47 Maximum Alert Level . | . . . . . Low Security (%) 100 | 100 100 100 . 100 Level 1 . | . . . . . Level 2 . | . . . . . Level 3 . | . . . . . Level 4 . | . . . . . Level 5 . | . . . . . High Security . | . . . . . Max Security . | . . . . . Squads Dispatched 1 | . 1 . . . Investigation . | . . . . . Extermination . | . . . . . Reinforcement 1 | . 1 . . . Assault . | . . . . . Garrison . | . . . . . Intercept . | . . . . . Searches Triggered . | . . . . . Construction Impeded . | . . . . . Haulers Reinforced . | . . . . . Active Scanning Responses . | . . . . . Cargo Convoy Interrupts . | . . . . . Stealth | -11 -10 -10 -10 -7 --------- Run | Yrd Mat Min Sub Rec Distress Signals 1 | . 1 . . . Communications Jammed . | . . . . . Distress Signals . | . . . . . Times Spotted 32 | . 11 5 13 3 Peak Tracking Total 6 | . 5 3 6 1 Tactical Retreats 3 | . 1 . 2 . Traps | -11 -10 -10 -10 -7 ------- Run | Yrd Mat Min Sub Rec Traps Triggered . | . . . . . Indirectly . | . . . . . Trap Hack Attempts . | . . . . . Triggered . | . . . . . Disarmed . | . . . . . Reprogrammed . | . . . . . Reused . | . . . . . Traps Extracted . | . . . . . Installed . | . . . . . Triggered . | . . . . . Machines | -11 -10 -10 -10 -7 ---------- Run | Yrd Mat Min Sub Rec Machines Disabled . | . . . . . Max in Single Turn . | . . . . . Machines Repaired . | . . . . . Machines Dismantled . | . . . . . Machines Sabotaged . | . . . . . Overloaded Fab Kills . | . . . . . Hacking | -11 -10 -10 -10 -7 --------- Run | Yrd Mat Min Sub Rec Machines Accessed 1 | . . . . 1 Terminals . | . . . . . Fabricators . | . . . . . Repair Stations . | . . . . . Recycling Units 1 | . . . . 1 Scanalyzers . | . . . . . Garrison Access . | . . . . . Total Hacks 2 | . . . . 2 Successful 1 | . . . . 1 Failed 1 | . . . . 1 Catastrophic . | . . . . . Database Lockouts . | . . . . . Manual . | . . . . . Terminals . | . . . . . Fabricators . | . . . . . Repair Stations . | . . . . . Recycling Units 2 | . . . . 2 Scanalyzers . | . . . . . Garrison Access . | . . . . . Terminal Hacks . | . . . . . Fabricator Hacks . | . . . . . Repair Station Hacks . | . . . . . Recycling Unit Hacks 1 | . . . . 1 Recycle Component 1 | . . . . 1 Scanalyzer . | . . . . . Garrison Access Hacks . | . . . . . Unauthorized Hacks . | . . . . . Terminals . | . . . . . Fabricators . | . . . . . Repair Stations . | . . . . . Recycling Units . | . . . . . Scanalyzers . | . . . . . Garrison Access . | . . . . . Data Cores Recovered . | . . . . . Used . | . . . . . Hacking Detections . | . . . . . Full Trace Events . | . . . . . Feedback Events . | . . . . . Feedback Blocked . | . . . . . Robot Schematics Acquired . | . . . . . Robots Built . | . . . . . Authchips . | . . . . . Time . | . . . . . Total Robot Build Rating . | . . . . . Part Schematics Acquired . | . . . . . Parts Built . | . . . . . Authchips . | . . . . . Time . | . . . . . Total Part Build Rating . | . . . . . Parts Repaired . | . . . . . Time . | . . . . . Parts Recycled 1 | . . . . 1 Recycled Matter . | . . . . . Retrieved Matter . | . . . . . Retrieved Components . | . . . . . Parts Scanalyzed . | . . . . . Part Schematics Acquired . | . . . . . Parts Damaged . | . . . . . Bothacking | -11 -10 -10 -10 -7 ------------ Run | Yrd Mat Min Sub Rec Used RIF Installer . | . . . . . Robots Hacked 1 | . . . . 1 Non-combat 1 | . . . . 1 Combat . | . . . . . Robot Hacks Applied 1 | . . . . 1 no_distress 1 | . . . . 1 Relay Couplers Released . | . . . . . Fabnet Peak Effective % . | . . . . . Robots Rewired . | . . . . . Allies Hacked . | . . . . . Hacks Repelled . | . . . . . Allies | -11 -10 -10 -10 -7 -------- Run | Yrd Mat Min Sub Rec Total Allies . | . . . . . Largest Group . | . . . . . Highest-Rated Group . | . . . . . Highest-Rated Ally . | . . . . . Total Orders . | . . . . . Ally Attacks . | . . . . . Total Damage . | . . . . . Kills . | . . . . . Allies Corrupted . | . . . . . Allies Melted . | . . . . . Intel | -11 -10 -10 -10 -7 ------- Run | Yrd Mat Min Sub Rec Robot Analysis Total . | . . . . . Derelict Logs Recovered 1 | . . 1 . . Drone Launches . | . . . . . Drone Recoveries . | . . . . . Exploration | -11 -10 -10 -10 -7 ------------- Run | Yrd Mat Min Sub Rec Turns Passed 2118 | 39 497 565 321 696 Spaces Moved 1411 | 33 269 419 226 464 Core 14 | 14 . . . . Treads . | . . . . . Legs 745 | 19 269 233 102 122 Wheels 652 | . . 186 124 342 Hover . | . . . . . Flight . | . . . . . Fastest Speed 50 | 50 120 90 90 95 Average Speed 108 | 90 120 106 104 107 Slowest Speed 120 | 120 120 120 120 120 Overloaded Moves . | . . . . . Propulsion Burnouts . | . . . . . Robots Hopped . | . . . . . Cave-ins Triggered . | . . . . . Exploration Rate (%) 34 | 4 40 68 19 40 Regions Visited 4 Branch Regions 3 Pre-discovered Areas . | . . . . . Known Exits Taken . | . . . . . Unknown Exits Taken 4 | 1 1 1 1 . Scrap Searched 1 | . . 1 . . Spaces Dug . | . . . . . Terrain Destroyed . | . . . . . Melee . | . . . . . Projectile . | . . . . . AOE . | . . . . . Terrain Rammed . | . . . . . Walls Destroyed . | . . . . . Machines Disabled . | . . . . . Actions | -11 -10 -10 -10 -7 --------- Run | Yrd Mat Min Sub Rec Total 1871 | 42 404 495 307 623 Wait 297 | . 96 33 61 107 Move 1407 | 32 268 418 225 464 Hop . | . . . . . Pick Up 29 | 5 7 5 5 7 Fast Attach 4 | . 1 2 1 . Attach 18 | 5 4 4 . 5 Detach 4 | . 2 1 . 1 Swap 16 | . 5 2 4 5 Drop 14 | . 2 1 6 5 Fire 61 | . 19 26 4 12 Melee 21 | . . 3 1 17 Ram . | . . . . . Kick . | . . . . . Crush . | . . . . . Escape Stasis . | . . . . . Rewire . | . . . . . Trap . | . . . . . Miscellaneous . | . . . . . Route ------- -11/Scrapyard -10/Materials (discovered 2 exits: [*Mat] / *Min) -10/Mines -10/Subcaves -7/Recycling History --------- Turn | Location | Event 4 | -11/Scrapyard | Discovered new exit (range 15) 40 | -11/Scrapyard | Entered Materials 309 | -10/Materials | Build established: Mutant 403 | -10/Materials | Discovered new exit (range 7) 452 | -10/Materials | Discovered new exit (range 15) 537 | -10/Materials | Entered Mines 566 | -10/Mines | Met a Derelict bent on vengeance 695 | -10/Mines | Learned location of 1 exit from Materials 773 | -10/Mines | Core integrity fell below 50% 827 | -10/Mines | Lost 3 parts (2n1w) 884 | -10/Mines | A weapon hastily lodged in a ceiling crevice suddenly fell to the ground 999 | -10/Mines | Discovered new exit (range 10) 1102 | -10/Mines | Entered Subcaves 1147 | -10/Subcaves | Ambushed by swarm of Subdwellers 1392 | -10/Subcaves | Discovered new exit (range 10) 1423 | -10/Subcaves | Entered Recycling 1424 | -7/Recycling | Met a Zionite searching for Scraptown 1691 | -7/Recycling | Core integrity fell below 20% 2119 | -7/Recycling | Destroyed by Y-54 Guardian with Gatling Laser Last Messages --------------- Seismic Detector destroyed. Wheel destroyed. Y-54 Guardian destroyed. Slug penetrates Wall. Acquired 10 matter. Acquired 4 matter. Acquired Gatling Laser. Dropped Greatsword. Acquired Imp. Heat Sink. R-06 Scavenger collects Imp. Deuterium Engine. R-06 Scavenger collects Imp. Light Armor Plating. R-06 Scavenger collects Greatsword. Acquired Arc Projector. R-06 Scavenger inserts Greatsword into recycling unit. R-06 Scavenger collects Imp. Heat Sink. R-06 Scavenger collects Lgt. Treads. Y-54 Guardian springs to life. Slug penetrates Y-54 Guardian. Map ----- +----------------------------------------------------+ | ?????????????????#### ###???????????????? | | ????????????????????# ""#???????????????? | | ?????????????? ?????#[ Y"#???????????????? | | ????????????????????# ""#???????????????? | | ???????????????????##%= ######????????????? | | ???????????????????# #! #????????????? | | ???????????????? ??## # #????????????? | | ??????????????? ????# #* #????????????? | | ???????????????###### #! #????????????? | | ???????????????#"""## #! #????????????? | | ?????# #########"Y"## # []#????????????? | | ????# + % !#????????????? | | ?????# ######## # #????????????? | | ??????????????# # !#????????????? | | ????#?????????# +/ #????????????? | | ??????????????# ########## /! #????????????? | | ?????? ?????#?# #????????# #?????#??????? | | ??????????#???# #????????# #?#??????????? | | ??????????????# #????????######????????????? | | ??????????????# ##########?????????????????? | | ???????##?????# #?????????#???????? | | ??????????????#### #?#??????#????????? | | ?????????????????# #?????????????????? | | ?????????????????# #?????????????????? | | ?????????????????# #####Y#####?????????????? | | ?????????????????#+#??#! @ !!#?????????????? | | ???????????????? % #?# ! #?????????????? | | ?????????????? % #?# ! #?????????????? | | ???????????? #?# !! #?????????????? | | ???????????# [ #?# !!!!#?????????????? | | ???????????# ### ! #?????????????? | | ???????????# ! #?# ! #?????????????? | | ???????? ?# #?# ! #?????????????? | | ??????????## #?########?????????????? | | ???????????# #??????????????????????? | | ???????????#####+####??????????????????????? | | ???????????????????????????????????????????? | | ???????????????????????????????????????????? | | ???????????????????????????????????????????? | | ???????????????????????????????????????????? | | ???????????????????????????????????????????? | | ???????????????????????????????????????????? | | ???????????????????????????????????????????? | | ???????????????????????????????????????????? | | ???????????????????????????????????????????? | | ???????????????????????????????????????????? | | ???????????????????????????????????????????? | | ???????????????????????????????????????????? | | ???????????????????????????????????????????? | | ???????????????????????????????????????????? | +----------------------------------------------------+ Best States ------------- Heat Dissipation 25 Energy Generation 14 Energy Capacity 250 Matter Stores 300 Matter Capacity 300 Sight Range 16 Terrain Scan Range 14 Terrain Scan Density 10 ECM Strength 1 Propulsion Shielding 33 Evasion (%) 55 Item Schematics ----------------- None Robot Schematics ------------------ None Fabricated ------------ Nothing Alien Tech Used ----------------- None Achievements -------------- None Challenges ------------ None Game ------ Seed CorruptionPlatingBlaster Manual? 0 Play Time 00:27:36 Cumulative 3.8 hours Start 2024.10.03 @ 18:46:39 End 2024.10.03 @ 19:13:17 Sessions 1 Manual Loads 0 Difficulty Rogue Special Mode None Game No. 9 Rogue 9 Adventurer 0 Explorer 0 Win Type - Total 0 Types 0/0/0/0/0/0/0/0/0 Lore% 1 Gallery% 10 Achievement% 7 Wizard Run 0 Options --------- Layout 1 ASCII 0 Keyboard 0 Movement Mouse Keybinds 0 Fullscreen 1 Font 24/Smallcaps Map View 50x35 Zoom Use 0% Tactical HUD 0 Map Filters NONE Filters NONE Steam 1 RUN: 23b8dfe7-da2a-4343-9588-abe0f3d2b1bb